[Event "Chile-ch Women 2019"]
[Site "Santiago Las Condes"]
[Date "2019.02.17"]
[Round "9.5"]
[White "Luna Benalcazar, Gianella"]
[Black "Hormazabal Figueroa, Constanza Va"]
[Result "1/2-1/2"]
[ECO "E90"]
[WhiteElo "1804"]
[BlackElo "1624"]
[Annotator "NA"]
[PlyCount "64"]
[EventDate "2019.02.12"]
[EventType "swiss"]
[EventCountry "CHI"]
[SourceTitle "playchess.com"]
[Source "ChessBase"]
[SourceQuality "1"]
[TimeControl "5400+30"]

1. d4 {[%emt 0:00:00]} Nf6 {[%emt 0:00:00]} 2. Nf3 {[%emt 0:00:00]} c5 {[%emt 0:00:00]} 3. d5 {[%emt 0:00:00]} g6 {[%emt 0:00:03]} 4. c4 {[%emt 0:00:05]} Bg7 {[%emt 0:00:07]} 5. Nc3 {[%emt 0:00:08]} d6 {[%emt 0:00:09]} 6. e4 {[%emt 0:00:16]} O-O {[%emt 0:00:09]} 7. Bd3 {[%emt 0:00:35]} Bg4 {[%emt 0:00:17]} 8. h3 {[%emt 0:05:09]} Bxf3 {[%emt 0:00:18]} 9. Qxf3 {[%emt 0:00:11]} Nbd7 {[%emt 0:00:31]} 10. Qe2 {[%emt 0:05:02]} Ne8 {[%emt 0:05:19]} 11. Bd2 {[%emt 0:02:18]} Nc7 {[%emt 0:00:16]} 12. Bg5 {[%emt 0:15:01]} Nf6 {[%emt 0:01:42]} 13. Qd2 {[%emt 0:12:32]} Qd7 {[%emt 0:02:23]} 14. Bh6 {[%emt 0:05:44]} e6 {[%emt 0:01:03]} 15. Bxg7 {[%emt 0:00:14]} Kxg7 {[%emt 0:00:08]} 16. O-O-O {[%emt 0:00:36]} exd5 {[%emt 0:00:09]} 17. Nxd5 {[%emt 0:05:01]} Nfxd5 {[%emt 0:00:47]} 18. exd5 {[%emt 0:04:07]} b5 {[%emt 0:00:36]} 19. h4 {[%emt 0:04:19]} h6 {[%emt 0:01:53]} 20. h5 {[%emt 0:02:48]} g5 {[%emt 0:00:20]} 21. Qc3+ {[%emt 0:01:29]} Kg8 {[%emt 0:01:24]} 22. Qf6 {[%emt 0:02:20]} bxc4 {[%emt 0:00:15]} 23. Bxc4 {[%emt 0:06:26]} Qg4 {[%emt 0:00:45]} 24. b3 {[%emt 0:04:11]} Qf4+ {[%emt 0:00:42]} 25. Qxf4 {[%emt 0:00:04]} gxf4 {[%emt 0:00:13]} 26. Rh4 {[%emt 0:00:24]} f3 {[%emt 0:00:35]} 27. Rg4+ {[%emt 0:03:56]} Kh8 {[%emt 0:00:22]} 28. gxf3 {[%emt 0:00:47]} Rae8 {[%emt 0:00:12]} 29. f4 {[%emt 0:06:43]} Rg8 {[%emt 0:01:21]} 30. Rxg8+ {[%emt 0:00:41]} Kxg8 {[%emt 0:00:09]} 31. Kd2 {[%emt 0:00:45]} Re4 {[%emt 0:00:22]} 32. Re1 {[%emt 0:00:32]} Rxf4 {[%emt 1:23:30]} 1/2-1/2

[Event "Chile-ch Women 2019"]
[Site "Santiago Las Condes"]
[Date "2019.02.17"]
[Round "9.6"]
[White "Aguilera Merlet, Melisa Paz"]
[Black "Romero Troncoso, Liset Anais"]
[Result "1/2-1/2"]
[ECO "C42"]
[WhiteElo "1653"]
[BlackElo "1604"]
[Annotator "NA"]
[PlyCount "159"]
[EventDate "2019.02.12"]
[EventType "swiss"]
[EventCountry "CHI"]
[SourceTitle "playchess.com"]
[Source "ChessBase"]
[SourceQuality "1"]
[TimeControl "5400+30"]

1. e4 {[%emt 0:00:00]} e5 {[%emt 0:02:52]} 2. Nf3 {[%emt 0:00:12]} Nf6 {[%emt 0:00:18]} 3. Nxe5 {[%emt 0:01:17]} d6 {[%emt 0:00:06]} 4. Nf3 {[%emt 0:00:51]} Nxe4 {[%emt 0:00:07]} 5. d4 {[%emt 0:01:43]} d5 {[%emt 0:00:34]} 6. Bd3 {[%emt 0:01:44]} Be7 {[%emt 0:01:00]} 7. O-O {[%emt 0:01:55]} Nc6 {[%emt 0:00:17]} 8. c4 {[%emt 0:01:09]} Nb4 {[%emt 0:03:58]} 9. Be2 {[%emt 0:01:48]} O-O {[%emt 0:05:26]} 10. Re1 {[%emt 0:02:19]} Bg4 {[%emt 0:08:56]} 11. Ne5 {[%emt 0:07:08]} Bxe2 {[%emt 0:01:34]} 12. Qxe2 {[%emt 0:00:43]} Nf6 {[%emt 0:08:50]} 13. a3 {[%emt 0:01:00]} Na6 {[%emt 0:01:02]} 14. b4 {[%emt 0:01:46]} dxc4 {[%emt 0:00:58]} 15. b5 {[%emt 0:07:16]} Nb8 {[%emt 0:00:23]} 16. Qxc4 {[%emt 0:00:22]} Nbd7 {[%emt 0:00:39]} 17. Nc3 {[%emt 0:05:11]} Nb6 {[%emt 0:01:30]} 18. Qd3 {[%emt 0:03:12]} Nbd5 {[%emt 0:01:16]} 19. Ne2 {[%emt 0:11:00]} Re8 {[%emt 0:05:15]} 20. Qg3 {[%emt 0:06:53]} Bf8 {[%emt 0:04:55]} 21. Qf3 {[%emt 0:03:06]} a6 {[%emt 0:04:23]} 22. g4 {[%emt 0:05:09]} Re7 {[%emt 0:04:47]} 23. a4 {[%emt 0:03:33]} axb5 {[%emt 0:00:29]} 24. Ba3 {[%emt 0:00:13]} b4 {[%emt 0:01:08]} 25. Bc1 {[%emt 0:02:01]} c6 {[%emt 0:02:18]} 26. Ng3 {[%emt 0:01:07]} g6 {[%emt 0:00:57]} 27. Bg5 {[%emt 0:05:57]} Bg7 {[%emt 0:00:09]} 28. Ne4 {[%emt 0:00:37]} Re8 {[%emt 0:00:47]} 29. h4 {[%emt 0:03:32]} Rf8 {[%emt 0:05:54]} 30. h5 {[%emt 0:02:36]} h6 {[%emt 0:03:03]} 31. hxg6 {[%emt 0:10:12]} fxg6 {[%emt 0:08:09]} 32. Bxf6 {[%emt 0:00:44]} Nxf6 {[%emt 0:02:39]} 33. Nxg6 {[%emt 0:00:22]} Nxe4 {[%emt 0:00:51]} 34. Nxf8 {[%emt 0:02:18]} Ng5 {[%emt 0:00:12]} 35. Qb3+ {[%emt 0:00:23]} Kxf8 {[%emt 0:00:19]} 36. Qxb4+ {[%emt 0:00:12]} Kg8 {[%emt 0:00:55]} 37. Qb3+ {[%emt 0:07:52]} Kh8 {[%emt 0:00:23]} 38. Kg2 {[%emt 0:00:38]} Qxd4 {[%emt 0:01:22]} 39. Rad1 {[%emt 0:00:55]} Qxg4+ {[%emt 0:00:49]} 40. Qg3 {[%emt 0:00:10]} Qxg3+ {[%emt 0:02:37]} 41. Kxg3 {[%emt 0:00:12]} Rxa4 {[%emt 0:04:35]} 42. Rd8+ {[%emt 0:00:06]} Kh7 {[%emt 0:00:17]} 43. Rd7 {[%emt 0:00:13]} Ra3+ {[%emt 0:00:51]} 44. Kg2 {[%emt 0:00:21]} Kg6 {[%emt 0:01:01]} 45. Rxb7 {[%emt 0:00:11]} c5 {[%emt 0:01:10]} 46. Rb6+ {[%emt 0:01:06]} Kf5 {[%emt 0:00:30]} 47. Rc1 {[%emt 0:00:33]} Ne6 {[%emt 0:00:49]} 48. Rh1 {[%emt 0:01:23]} Nf4+ {[%emt 0:02:38]} 49. Kg1 {[%emt 0:00:45]} Ra1+ {[%emt 0:00:28]} 50. Kh2 {[%emt 0:00:09]} Rxh1+ {[%emt 0:00:22]} 51. Kxh1 {[%emt 0:00:00]} c4 {[%emt 0:00:30]} 52. f3 {[%emt 0:01:12]} c3 {[%emt 0:01:03]} 53. Rc6 {[%emt 0:00:10]} Ne2 {[%emt 0:00:42]} 54. Kg2 {[%emt 0:00:35]} Nc1 {[%emt 0:01:59]} 55. Kf2 {[%emt 0:00:39]} Nd3+ {[%emt 0:00:30]} 56. Ke2 {[%emt 0:00:34]} Nb4 {[%emt 0:00:48]} 57. Rc5+ {[%emt 0:00:14]} Ke6 {[%emt 0:00:32]} 58. Kd1 {[%emt 0:00:19]} c2+ {[%emt 0:00:19]} 59. Kd2 {[%emt 0:01:09]} Bb2 {[%emt 0:00:24]} 60. Rxc2 {[%emt 0:00:18]} Nxc2 {[%emt 0:00:06]} 61. Kxc2 {[%emt 0:00:04]} Be5 {[%emt 0:00:08]} 62. Kd3 {[%emt 0:00:23]} h5 {[%emt 0:01:14]} 63. Ke3 {[%emt 0:00:18]} Bg3 {[%emt 0:03:01]} 64. Ke2 {[%emt 0:01:24]} h4 {[%emt 0:00:57]} 65. Kf1 {[%emt 0:00:17]} Ke5 {[%emt 0:00:29]} 66. Kg2 {[%emt 0:00:27]} Kf4 {[%emt 0:00:20]} 67. Kh3 {[%emt 0:00:18]} Ke3 {[%emt 0:00:31]} 68. Kg2 {[%emt 0:00:17]} Ke2 {[%emt 0:00:30]} 69. Kh3 {[%emt 0:00:27]} Kf2 {[%emt 0:00:07]} 70. f4 {[%emt 0:00:11]} Kf3 {[%emt 0:01:15]} 71. f5 {[%emt 0:00:05]} Kf4 {[%emt 0:00:37]} 72. f6 {[%emt 0:00:06]} Kg5 {[%emt 0:00:08]} 73. f7 {[%emt 0:00:08]} Bd6 {[%emt 0:00:10]} 74. Kg2 {[%emt 0:01:27]} Kg4 {[%emt 0:00:08]} 75. Kh1 {[%emt 0:00:09]} Kg3 {[%emt 0:01:33]} 76. Kg1 {[%emt 0:00:18]} Bc5+ {[%emt 0:00:20]} 77. Kh1 {[%emt 0:00:10]} h3 {[%emt 0:00:28]} 78. f8=Q {[%emt 0:00:18]} Bxf8 {[%emt 0:00:12]} 79. Kg1 {[%emt 0:00:08]} h2+ {[%emt 0:00:25]} 80. Kh1 {[%emt 0:00:06]} 1/2-1/2

[Event "Chile-ch Women 2019"]
[Site "Santiago Las Condes"]
[Date "2019.02.17"]
[Round "9.7"]
[White "Varela Varas, Patricia"]
[Black "Manriquez Abarzua, Maria Belen"]
[Result "0-1"]
[ECO "C22"]
[WhiteElo "1540"]
[BlackElo "1650"]
[Annotator "NA"]
[PlyCount "58"]
[EventDate "2019.02.12"]
[EventType "swiss"]
[EventCountry "CHI"]
[SourceTitle "playchess.com"]
[Source "ChessBase"]
[SourceQuality "1"]
[TimeControl "5400+30"]

1. e4 {[%emt 0:01:24]} e5 {[%emt 0:00:00]} 2. d4 {[%emt 0:00:21]} exd4 {[%emt 0:00:10]} 3. Qxd4 {[%emt 0:00:07]} Nc6 {[%emt 0:00:09]} 4. Qe3 {[%emt 0:00:06]} Nf6 {[%emt 0:00:09]} 5. Nc3 {[%emt 0:00:04]} Bb4 {[%emt 0:00:05]} 6. Bd2 {[%emt 0:00:05]} O-O {[%emt 0:00:05]} 7. O-O-O {[%emt 0:00:03]} Re8 {[%emt 0:00:25]} 8. Qg3 {[%emt 0:00:08]} Rxe4 {[%emt 0:07:19]} 9. a3 {[%emt 0:00:09]} Bd6 {[%emt 0:01:37]} 10. f4 {[%emt 0:00:35]} Bc5 {[%emt 1:25:01]} 11. Bd3 {[%emt 0:10:29]} Re8 {[%emt 0:00:00]} 12. Nf3 {[%emt 0:00:58]} d5 {[%emt 0:00:00]} 13. Ng5 {[%emt 0:11:20]} Ne7 {[%emt 0:00:00]} 14. h3 {[%emt 0:29:50]} h6 {[%emt 0:00:00]} 15. Nf3 {[%emt 0:01:43]} Bf5 {[%emt 0:00:00]} 16. Bf1 {[%emt 0:16:57]} d4 {[%emt 0:00:00]} 17. Ne2 {[%emt 0:01:50]} Ne4 {[%emt 0:00:00]} 18. Qe1 {[%emt 0:01:13]} d3 {[%emt 0:00:00]} 19. Bb4 {[%emt 0:13:29]} Be3+ {[%emt 0:00:00]} 20. Kb1 {[%emt 0:01:34]} dxc2+ {[%emt 0:00:00]} 21. Kxc2 {[%emt 0:00:19]} Nf2+ {[%emt 0:00:00]} 22. Kb3 {[%emt 0:01:12]} Nxd1 {[%emt 0:00:00]} 23. Nc3 {[%emt 0:01:28]} Nxc3 {[%emt 0:00:00]} 24. Qxe3 {[%emt 0:02:07]} Ncd5 {[%emt 0:00:00]} 25. Qc1 {[%emt 0:03:03]} Nxb4 {[%emt 0:00:00]} 26. axb4 {[%emt 0:00:13]} Nd5 {[%emt 0:00:00]} 27. Ne5 {[%emt 0:00:20]} Qd6 {[%emt 0:00:00]} 28. Qc4 {[%emt 0:00:57]} Be6 {[%emt 0:00:00]} 29. Ka3 {[%emt 0:01:55]} Ne3 {[%emt 0:09:30]} 0-1

[Event "Chile-ch Women 2019"]
[Site "Santiago Las Condes"]
[Date "2019.02.17"]
[Round "9.8"]
[White "Melipichun Torres, Katerine"]
[Black "Zuniga Lara, Catalina Paz"]
[Result "1/2-1/2"]
[ECO "A58"]
[WhiteElo "1640"]
[BlackElo "1617"]
[Annotator "NA"]
[PlyCount "100"]
[EventDate "2019.02.12"]
[EventType "swiss"]
[EventCountry "CHI"]
[SourceTitle "playchess.com"]
[Source "ChessBase"]
[SourceQuality "1"]
[TimeControl "5400+30"]

1. d4 {[%emt 0:00:00]} Nf6 {[%emt 0:04:53]} 2. c4 {[%emt 0:00:00]} c5 {[%emt 0:00:04]} 3. d5 {[%emt 0:00:00]} b5 {[%emt 0:00:03]} 4. cxb5 {[%emt 0:00:00]} a6 {[%emt 0:00:16]} 5. bxa6 {[%emt 0:00:00]} Bxa6 {[%emt 0:00:06]} 6. Nc3 {[%emt 0:00:05]} d6 {[%emt 0:00:24]} 7. g3 {[%emt 0:00:32]} g6 {[%emt 0:00:13]} 8. Bg2 {[%emt 0:00:24]} Bg7 {[%emt 0:00:06]} 9. Nf3 {[%emt 0:00:54]} Nbd7 {[%emt 0:01:51]} 10. h3 {[%emt 0:02:33]} O-O {[%emt 0:04:59]} 11. O-O {[%emt 0:02:03]} Nb6 {[%emt 0:06:22]} 12. Nh4 {[%emt 0:01:55]} Nfd7 {[%emt 0:05:20]} 13. Qc2 {[%emt 0:02:55]} Rb8 {[%emt 0:07:29]} 14. Rd1 {[%emt 0:02:34]} Qc7 {[%emt 0:02:01]} 15. Rb1 {[%emt 0:10:17]} Nc8 {[%emt 0:11:52]} 16. b3 {[%emt 0:05:42]} Qa5 {[%emt 0:08:09]} 17. Bb2 {[%emt 0:09:14]} Na7 {[%emt 0:03:32]} 18. Nf3 {[%emt 0:08:04]} Nb5 {[%emt 0:00:24]} 19. Nxb5 {[%emt 0:02:15]} Bxb5 {[%emt 0:00:06]} 20. Bxg7 {[%emt 0:03:57]} Kxg7 {[%emt 0:00:06]} 21. e4 {[%emt 0:15:17]} Qa3 {[%emt 0:12:58]} 22. Nd2 {[%emt 0:08:53]} Ra8 {[%emt 0:06:10]} 23. Bf1 {[%emt 0:01:19]} Bxf1 {[%emt 0:06:52]} 24. Kxf1 {[%emt 0:00:11]} f6 {[%emt 0:02:07]} 25. Rb2 {[%emt 0:03:52]} Qb4 {[%emt 0:01:17]} 26. Nc4 {[%emt 0:02:49]} Ne5 {[%emt 0:00:55]} 27. Kg2 {[%emt 0:02:11]} Rfb8 {[%emt 0:03:39]} 28. Rdb1 {[%emt 0:02:28]} Qb5 {[%emt 0:01:50]} 29. f4 {[%emt 0:02:03]} Nxc4 {[%emt 0:03:24]} 30. bxc4 {[%emt 0:00:39]} Qe8 {[%emt 0:00:04]} 31. Rxb8 {[%emt 0:02:14]} Rxb8 {[%emt 0:00:06]} 32. Rxb8 {[%emt 0:00:05]} Qxb8 {[%emt 0:00:04]} 33. Qb3 {[%emt 0:00:05]} Qa7 {[%emt 0:00:15]} 34. a3 {[%emt 0:02:18]} Qa5 {[%emt 0:00:19]} 35. Qb2 {[%emt 0:00:36]} Qa4 {[%emt 0:01:36]} 36. Qc3 {[%emt 0:03:38]} Qd1 {[%emt 0:00:52]} 37. e5 {[%emt 0:01:05]} Qe2+ {[%emt 0:00:35]} 38. Kg1 {[%emt 0:00:18]} fxe5 {[%emt 0:00:52]} 39. fxe5 {[%emt 0:00:08]} dxe5 {[%emt 0:00:32]} 40. a4 {[%emt 0:00:33]} Qd1+ {[%emt 0:01:01]} 41. Kf2 {[%emt 0:00:37]} Qxa4 {[%emt 0:00:06]} 42. Qxe5+ {[%emt 0:00:09]} Kf7 {[%emt 0:00:01]} 43. Qe6+ {[%emt 0:00:59]} Ke8 {[%emt 0:00:08]} 44. Qc8+ {[%emt 0:00:45]} Kf7 {[%emt 0:00:19]} 45. Qxc5 {[%emt 0:00:28]} Qc2+ {[%emt 0:00:20]} 46. Kf3 {[%emt 0:00:39]} Qd1+ {[%emt 0:01:00]} 47. Kg2 {[%emt 0:00:13]} Ke8 {[%emt 0:01:40]} 48. Qc8+ {[%emt 0:01:22]} Kf7 {[%emt 0:00:07]} 49. Qe6+ {[%emt 0:00:17]} Ke8 {[%emt 0:00:13]} 50. Qg8+ {[%emt 0:01:06]} Kd7 {[%emt 0:00:09]} 1/2-1/2